[Event "Titled Tuesday Blitz June 27 Early 2023"]
[White "Cherniaiev, Tykhon"]
[Black "Mika, Tomasz"]
[WhiteFideId "14182360"]
[BlackFideId "1132970"]
[WhiteElo "2717"]
[BlackElo "2419"]
[Result "0-1"]
[Round "1"]
[TimeControl "180+2"]
[Date "2023.06.27"]
[WhiteClock "0:00:00"]
[BlackClock "0:00:06"]
[Board "111"]

1. Nf3 {[%clk 0:03:00]}  d5 {[%clk 0:02:57]} 2. d4 {[%clk 0:03:00]}  Nf6 {[%clk 0:02:54]} 3. c4 {[%clk 0:03:00]}  e6 {[%clk 0:02:50]} 4. Nc3 {[%clk 0:03:00]}  Bb4 {[%clk 0:02:49]} 5. Bg5 {[%clk 0:02:59]}  h6 {[%clk 0:02:49]} 6. Bxf6 {[%clk 0:02:59]}  Qxf6 {[%clk 0:02:50]} 7. cxd5 {[%clk 0:03:00]}  exd5 {[%clk 0:02:49]} 8. Qa4+ {[%clk 0:02:56]}  Nc6 {[%clk 0:02:48]} 9. e3 {[%clk 0:02:57]}  O-O {[%clk 0:02:45]} 10. Be2 {[%clk 0:02:56]}  Bd7 {[%clk 0:02:31]} 11. O-O {[%clk 0:02:53]}  Be6 {[%clk 0:01:49]} 12. a3 {[%clk 0:02:51]}  Be7 {[%clk 0:01:46]} 13. Qb5 {[%clk 0:02:46]}  Rfd8 {[%clk 0:01:24]} 14. Qxb7 {[%clk 0:02:42]}  Na5 {[%clk 0:01:21]} 15. Qxc7 {[%clk 0:02:42]}  Nc4 {[%clk 0:01:18]} 16. Bxc4 {[%clk 0:02:36]}  dxc4 {[%clk 0:01:18]} 17. d5 {[%clk 0:01:30]}  Bg4 {[%clk 0:01:04]} 18. Ne5 {[%clk 0:01:16]}  Bd6 {[%clk 0:00:39]} 19. Nxg4 {[%clk 0:01:14]}  Qh4 {[%clk 0:00:39]} 20. Qc6 {[%clk 0:01:03]}  Rac8 {[%clk 0:00:35]} 21. Qa4 {[%clk 0:00:48]}  Qxg4 {[%clk 0:00:35]} 22. Qc2 {[%clk 0:00:42]}  Qh4 {[%clk 0:00:33]} 23. h3 {[%clk 0:00:42]}  Re8 {[%clk 0:00:31]} 24. Rad1 {[%clk 0:00:41]}  Re5 {[%clk 0:00:25]} 25. Rd4 {[%clk 0:00:40]}  Qe7 {[%clk 0:00:23]} 26. Re4 {[%clk 0:00:34]}  f5 {[%clk 0:00:20]} 27. Rxe5 {[%clk 0:00:34]}  Qxe5 {[%clk 0:00:21]} 28. g3 {[%clk 0:00:33]}  h5 {[%clk 0:00:21]} 29. Qd1 {[%clk 0:00:16]}  h4 {[%clk 0:00:20]} 30. Qd4 {[%clk 0:00:16]}  hxg3 {[%clk 0:00:16]} 31. Qxe5 {[%clk 0:00:16]}  Bxe5 {[%clk 0:00:16]} 32. fxg3 {[%clk 0:00:16]}  g6 {[%clk 0:00:16]} 33. Kg2 {[%clk 0:00:11]}  Rb8 {[%clk 0:00:16]} 34. Rf2 {[%clk 0:00:11]}  Rb3 {[%clk 0:00:15]} 35. Na4 {[%clk 0:00:10]}  Rxe3 {[%clk 0:00:14]} 36. g4 {[%clk 0:00:10]}  Rg3+ {[%clk 0:00:14]} 37. Kf1 {[%clk 0:00:11]}  f4 {[%clk 0:00:13]} 38. Nc5 {[%clk 0:00:09]}  Rxh3 {[%clk 0:00:11]} 39. Kg2 {[%clk 0:00:04]}  Rg3+ {[%clk 0:00:09]} 40. Kf1 {[%clk 0:00:03]}  Bd4 {[%clk 0:00:09]} 41. Rxf4 {[%clk 0:00:03]}  Bxc5 {[%clk 0:00:09]} 42. Rxc4 {[%clk 0:00:04]}  Bb6 {[%clk 0:00:08]} 43. a4 {[%clk 0:00:02]}  Rf3+ {[%clk 0:00:06]} 44. Ke1 {[%clk 0:00:01]}  Re3+ {[%clk 0:00:06]} 45. Kd2 {[%clk 0:00:00]}  Re5 {[%clk 0:00:06]} 0-1


[Site "https://www.chess.com"]

[Event "Titled Tuesday Blitz June 27 Early 2023"]
[White "Dinu, Dumitru-Daniel"]
[Black "Lavrik, Dmitry"]
[WhiteFideId "1208403"]
[BlackFideId "24113190"]
[WhiteElo "2417"]
[BlackElo "2715"]
[Result "0-1"]
[Round "1"]
[TimeControl "180+2"]
[Date "2023.06.27"]
[WhiteClock "0:00:00"]
[BlackClock "0:00:57"]
[Board "114"]

1. e4 {[%clk 0:02:51]}  c5 {[%clk 0:02:59]} 2. Nf3 {[%clk 0:02:49]}  e6 {[%clk 0:02:59]} 3. b3 {[%clk 0:02:35]}  Nc6 {[%clk 0:02:58]} 4. Bb2 {[%clk 0:02:20]}  a6 {[%clk 0:02:57]} 5. g3 {[%clk 0:02:13]}  d6 {[%clk 0:02:41]} 6. Bg2 {[%clk 0:02:11]}  e5 {[%clk 0:02:40]} 7. O-O {[%clk 0:02:09]}  Nf6 {[%clk 0:02:40]} 8. d3 {[%clk 0:02:09]}  Be7 {[%clk 0:02:41]} 9. Nbd2 {[%clk 0:02:09]}  O-O {[%clk 0:02:40]} 10. Ne1 {[%clk 0:02:03]}  d5 {[%clk 0:02:36]} 11. exd5 {[%clk 0:01:47]}  Nxd5 {[%clk 0:02:37]} 12. Nc4 {[%clk 0:01:47]}  f6 {[%clk 0:02:27]} 13. Bxd5+ {[%clk 0:01:42]}  Qxd5 {[%clk 0:02:28]} 14. Nb6 {[%clk 0:01:41]}  Qd8 {[%clk 0:02:26]} 15. Nxa8 {[%clk 0:01:39]}  Bh3 {[%clk 0:02:25]} 16. Ng2 {[%clk 0:01:38]}  Qxa8 {[%clk 0:02:24]} 17. Qh5 {[%clk 0:01:37]}  Qc8 {[%clk 0:02:24]} 18. f3 {[%clk 0:01:10]}  Nd4 {[%clk 0:02:12]} 19. Rf2 {[%clk 0:01:03]}  Bd7 {[%clk 0:01:59]} 20. Re1 {[%clk 0:00:53]}  Bc6 {[%clk 0:01:57]} 21. Re3 {[%clk 0:00:30]}  g6 {[%clk 0:01:54]} 22. Qh4 {[%clk 0:00:22]}  Nf5 {[%clk 0:01:53]} 23. Qc4+ {[%clk 0:00:21]}  Kg7 {[%clk 0:01:50]} 24. Re1 {[%clk 0:00:21]}  b5 {[%clk 0:01:50]} 25. Qg4 {[%clk 0:00:20]}  h5 {[%clk 0:01:49]} 26. Qh3 {[%clk 0:00:18]}  Bd7 {[%clk 0:01:43]} 27. g4 {[%clk 0:00:15]}  Nh6 {[%clk 0:01:30]} 28. Ne3 {[%clk 0:00:14]}  hxg4 {[%clk 0:01:28]} 29. fxg4 {[%clk 0:00:14]}  Nxg4 {[%clk 0:01:28]} 30. Nxg4 {[%clk 0:00:13]}  Bxg4 {[%clk 0:01:28]} 31. Qg3 {[%clk 0:00:14]}  Bh5 {[%clk 0:01:16]} 32. Rg2 {[%clk 0:00:02]}  Kh7 {[%clk 0:01:15]} 33. Bxe5 {[%clk 0:00:02]}  fxe5 {[%clk 0:01:12]} 34. Qxe5 {[%clk 0:00:03]}  Bf6 {[%clk 0:01:10]} 35. Qd5 {[%clk 0:00:03]}  Bf3 {[%clk 0:01:04]} 36. Qxf3 {[%clk 0:00:02]}  Bd4+ {[%clk 0:01:04]} 37. Qe3 {[%clk 0:00:00]}  Qe6 {[%clk 0:00:57]} 0-1


[Site "https://www.chess.com"]

[Event "Titled Tuesday Blitz June 27 Early 2023"]
[White "Postny, Evgeny"]
[Black "Gatterer, Florian"]
[WhiteFideId "2804344"]
[BlackFideId "811688"]
[WhiteElo "2714"]
[BlackElo "2416"]
[Result "1-0"]
[Round "1"]
[TimeControl "180+2"]
[Date "2023.06.27"]
[WhiteClock "0:00:16"]
[BlackClock "0:00:14"]
[Board "115"]

1. e4 {[%clk 0:02:59]}  c5 {[%clk 0:03:00]} 2. Nf3 {[%clk 0:02:57]}  e6 {[%clk 0:03:00]} 3. b3 {[%clk 0:02:56]}  a6 {[%clk 0:02:59]} 4. Bb2 {[%clk 0:02:56]}  Nc6 {[%clk 0:02:59]} 5. Bd3 {[%clk 0:02:54]}  Nf6 {[%clk 0:02:55]} 6. O-O {[%clk 0:02:54]}  d5 {[%clk 0:02:55]} 7. exd5 {[%clk 0:02:52]}  Nxd5 {[%clk 0:02:52]} 8. Re1 {[%clk 0:02:47]}  Be7 {[%clk 0:02:50]} 9. Bxg7 {[%clk 0:02:46]}  Rg8 {[%clk 0:02:49]} 10. Bh6 {[%clk 0:02:34]}  Qc7 {[%clk 0:02:25]} 11. Nc3 {[%clk 0:02:26]}  Nf4 {[%clk 0:02:24]} 12. Bxf4 {[%clk 0:02:25]}  Qxf4 {[%clk 0:02:24]} 13. g3 {[%clk 0:02:24]}  Qf6 {[%clk 0:02:14]} 14. Bxh7 {[%clk 0:02:20]}  Rh8 {[%clk 0:02:10]} 15. Be4 {[%clk 0:02:20]}  Bd7 {[%clk 0:02:05]} 16. Na4 {[%clk 0:02:12]}  O-O-O {[%clk 0:01:34]} 17. Nb6+ {[%clk 0:02:09]}  Kc7 {[%clk 0:01:34]} 18. Nxd7 {[%clk 0:02:09]}  Rxd7 {[%clk 0:01:35]} 19. Bxc6 {[%clk 0:02:07]}  bxc6 {[%clk 0:01:30]} 20. Qe2 {[%clk 0:02:07]}  Bd6 {[%clk 0:01:30]} 21. d3 {[%clk 0:01:56]}  Qh6 {[%clk 0:01:21]} 22. Qf1 {[%clk 0:01:45]}  Rdd8 {[%clk 0:01:18]} 23. Qg2 {[%clk 0:01:44]}  Qf6 {[%clk 0:01:17]} 24. Nd2 {[%clk 0:01:31]}  Qg7 {[%clk 0:01:06]} 25. Nc4 {[%clk 0:01:26]}  Be7 {[%clk 0:00:55]} 26. Rad1 {[%clk 0:01:14]}  Bf6 {[%clk 0:00:51]} 27. Re4 {[%clk 0:01:10]}  Rh5 {[%clk 0:00:50]} 28. Na5 {[%clk 0:00:59]}  Rdh8 {[%clk 0:00:40]} 29. Rf4 {[%clk 0:00:34]}  Rd5 {[%clk 0:00:27]} 30. Qf3 {[%clk 0:00:32]}  Qh6 {[%clk 0:00:24]} 31. Rxf6 {[%clk 0:00:27]}  Qxh2+ {[%clk 0:00:24]} 32. Kf1 {[%clk 0:00:28]}  Re5 {[%clk 0:00:16]} 33. Qxc6+ {[%clk 0:00:25]}  Kd8 {[%clk 0:00:16]} 34. Qd6+ {[%clk 0:00:18]}  Ke8 {[%clk 0:00:16]} 35. Qxe5 {[%clk 0:00:17]}  Qh1+ {[%clk 0:00:16]} 36. Ke2 {[%clk 0:00:18]}  Qh5+ {[%clk 0:00:17]} 37. Qxh5 {[%clk 0:00:17]}  Rxh5 {[%clk 0:00:14]} 38. Nc4 {[%clk 0:00:16]} 1-0


[Site "https://www.chess.com"]

[Event "Titled Tuesday Blitz June 27 Early 2023"]
[White "Kopczynski, Michal"]
[Black "Ajay Karthikeyan"]
[WhiteFideId "1124200"]
[BlackFideId "35011685"]
[WhiteElo "2413"]
[BlackElo "2710"]
[Result "0-1"]
[Round "1"]
[TimeControl "180+2"]
[Date "2023.06.27"]
[WhiteClock "0:00:04"]
[BlackClock "0:00:20"]
[Board "118"]

1. e4 {[%clk 0:03:00]}  c5 {[%clk 0:02:59]} 2. d4 {[%clk 0:03:00]}  cxd4 {[%clk 0:02:59]} 3. c3 {[%clk 0:03:01]}  d3 {[%clk 0:03:00]} 4. Bxd3 {[%clk 0:03:01]}  g6 {[%clk 0:03:00]} 5. f4 {[%clk 0:03:01]}  Bg7 {[%clk 0:03:01]} 6. Nf3 {[%clk 0:03:02]}  d6 {[%clk 0:03:01]} 7. O-O {[%clk 0:03:03]}  Nc6 {[%clk 0:03:00]} 8. Kh1 {[%clk 0:03:03]}  Nf6 {[%clk 0:02:59]} 9. Qe1 {[%clk 0:03:04]}  O-O {[%clk 0:02:58]} 10. Be3 {[%clk 0:03:04]}  Bg4 {[%clk 0:02:45]} 11. Nbd2 {[%clk 0:03:04]}  Rc8 {[%clk 0:02:32]} 12. Rd1 {[%clk 0:03:03]}  Qa5 {[%clk 0:02:27]} 13. a3 {[%clk 0:03:00]}  Qh5 {[%clk 0:02:24]} 14. Be2 {[%clk 0:02:55]}  e5 {[%clk 0:02:17]} 15. f5 {[%clk 0:02:27]}  d5 {[%clk 0:01:50]} 16. fxg6 {[%clk 0:02:20]}  hxg6 {[%clk 0:01:47]} 17. Ng1 {[%clk 0:02:06]}  dxe4 {[%clk 0:01:38]} 18. h3 {[%clk 0:01:29]}  Bxe2 {[%clk 0:01:25]} 19. Nxe2 {[%clk 0:01:20]}  Rcd8 {[%clk 0:01:18]} 20. Ng3 {[%clk 0:01:15]}  Qh4 {[%clk 0:01:18]} 21. Ngxe4 {[%clk 0:01:00]}  Qxe1 {[%clk 0:01:17]} 22. Nxf6+ {[%clk 0:00:55]}  Bxf6 {[%clk 0:01:16]} 23. Rdxe1 {[%clk 0:00:56]}  Bg7 {[%clk 0:01:10]} 24. Ne4 {[%clk 0:00:50]}  f5 {[%clk 0:01:05]} 25. Nc5 {[%clk 0:00:47]}  Rf7 {[%clk 0:01:05]} 26. Rd1 {[%clk 0:00:45]}  Re8 {[%clk 0:00:58]} 27. Rd6 {[%clk 0:00:41]}  Kh7 {[%clk 0:00:52]} 28. b4 {[%clk 0:00:38]}  Bf8 {[%clk 0:00:36]} 29. Rd7 {[%clk 0:00:26]}  Rxd7 {[%clk 0:00:36]} 30. Nxd7 {[%clk 0:00:27]}  Bg7 {[%clk 0:00:35]} 31. Nc5 {[%clk 0:00:25]}  b6 {[%clk 0:00:31]} 32. Nd3 {[%clk 0:00:25]}  f4 {[%clk 0:00:30]} 33. Bc1 {[%clk 0:00:22]}  g5 {[%clk 0:00:30]} 34. Re1 {[%clk 0:00:22]}  e4 {[%clk 0:00:30]} 35. Nf2 {[%clk 0:00:20]}  e3 {[%clk 0:00:31]} 36. Nd1 {[%clk 0:00:18]}  Ne5 {[%clk 0:00:30]} 37. Nb2 {[%clk 0:00:16]}  Rc8 {[%clk 0:00:29]} 38. Bxe3 {[%clk 0:00:10]}  fxe3 {[%clk 0:00:28]} 39. Rxe3 {[%clk 0:00:11]}  Kg6 {[%clk 0:00:26]} 40. Nd1 {[%clk 0:00:10]}  Kf5 {[%clk 0:00:23]} 41. g4+ {[%clk 0:00:09]}  Kf4 {[%clk 0:00:23]} 42. Kg2 {[%clk 0:00:09]}  Rd8 {[%clk 0:00:21]} 43. Re1 {[%clk 0:00:09]}  Rd2+ {[%clk 0:00:20]} 44. Kg1 {[%clk 0:00:04]}  Nf3+ {[%clk 0:00:20]} 0-1


[Site "https://www.chess.com"]

[Event "Titled Tuesday Blitz June 27 Early 2023"]
[White "Volkov, Maksim"]
[Black "BenchGM"]
[WhiteFideId "54123070"]
[WhiteElo "2709"]
[BlackElo "2413"]
[Result "1-0"]
[Round "1"]
[TimeControl "180+2"]
[Date "2023.06.27"]
[WhiteClock "0:00:46"]
[BlackClock "0:00:00"]
[Board "119"]

1. d4 {[%clk 0:02:59]}  Nf6 {[%clk 0:02:59]} 2. c4 {[%clk 0:02:59]}  e6 {[%clk 0:02:57]} 3. g3 {[%clk 0:03:00]}  d5 {[%clk 0:02:57]} 4. Bg2 {[%clk 0:02:59]}  Be7 {[%clk 0:02:58]} 5. Nf3 {[%clk 0:02:59]}  O-O {[%clk 0:02:58]} 6. Nc3 {[%clk 0:02:59]}  dxc4 {[%clk 0:02:57]} 7. Ne5 {[%clk 0:02:59]}  Nc6 {[%clk 0:02:53]} 8. Bxc6 {[%clk 0:02:59]}  bxc6 {[%clk 0:02:53]} 9. Nxc6 {[%clk 0:03:00]}  Qe8 {[%clk 0:02:52]} 10. Nxe7+ {[%clk 0:03:01]}  Qxe7 {[%clk 0:02:52]} 11. Qa4 {[%clk 0:03:00]}  Bb7 {[%clk 0:02:46]} 12. f3 {[%clk 0:02:57]}  c5 {[%clk 0:02:41]} 13. Be3 {[%clk 0:02:44]}  Nd5 {[%clk 0:02:30]} 14. Nxd5 {[%clk 0:02:36]}  exd5 {[%clk 0:02:30]} 15. Qa3 {[%clk 0:02:36]}  Rfe8 {[%clk 0:02:22]} 16. Kf2 {[%clk 0:02:36]}  cxd4 {[%clk 0:02:18]} 17. Qxe7 {[%clk 0:02:36]}  Rxe7 {[%clk 0:02:12]} 18. Bxd4 {[%clk 0:02:36]}  Rae8 {[%clk 0:02:06]} 19. Rhe1 {[%clk 0:02:34]}  Ba6 {[%clk 0:02:02]} 20. Bc3 {[%clk 0:02:27]}  f5 {[%clk 0:01:50]} 21. Rad1 {[%clk 0:02:26]}  Bb7 {[%clk 0:01:43]} 22. h4 {[%clk 0:02:19]}  h5 {[%clk 0:01:39]} 23. Bd4 {[%clk 0:02:14]}  Ba6 {[%clk 0:01:35]} 24. Bc5 {[%clk 0:02:05]}  Rb7 {[%clk 0:01:29]} 25. Bd4 {[%clk 0:02:01]}  Rbe7 {[%clk 0:01:28]} 26. Bc3 {[%clk 0:02:00]}  Bb7 {[%clk 0:01:17]} 27. Rd2 {[%clk 0:02:01]}  Kf7 {[%clk 0:01:07]} 28. Rc1 {[%clk 0:01:54]}  Rg8 {[%clk 0:00:50]} 29. Bd4 {[%clk 0:01:49]}  a5 {[%clk 0:00:47]} 30. Rc3 {[%clk 0:01:43]}  a4 {[%clk 0:00:44]} 31. Be3 {[%clk 0:01:29]}  Bc6 {[%clk 0:00:39]} 32. b3 {[%clk 0:01:25]}  axb3 {[%clk 0:00:26]} 33. axb3 {[%clk 0:01:24]}  Rge8 {[%clk 0:00:24]} 34. bxc4 {[%clk 0:01:20]}  dxc4 {[%clk 0:00:22]} 35. Bc5 {[%clk 0:01:04]}  Re5 {[%clk 0:00:12]} 36. Rxc4 {[%clk 0:01:04]}  Bb5 {[%clk 0:00:12]} 37. Rcc2 {[%clk 0:01:02]}  Rc8 {[%clk 0:00:10]} 38. Bd4 {[%clk 0:00:58]}  Rxc2 {[%clk 0:00:09]} 39. Rxc2 {[%clk 0:00:59]}  Re7 {[%clk 0:00:09]} 40. Be3 {[%clk 0:00:56]}  g6 {[%clk 0:00:08]} 41. Rc5 {[%clk 0:00:55]}  Ba6 {[%clk 0:00:08]} 42. Ra5 {[%clk 0:00:55]}  Bc4 {[%clk 0:00:06]} 43. Rc5 {[%clk 0:00:55]}  Ba6 {[%clk 0:00:05]} 44. Rc6 {[%clk 0:00:55]}  Bb5 {[%clk 0:00:05]} 45. Rb6 {[%clk 0:00:56]}  Bc4 {[%clk 0:00:05]} 46. Rd6 {[%clk 0:00:51]}  Bb5 {[%clk 0:00:05]} 47. Rd2 {[%clk 0:00:50]}  Bc4 {[%clk 0:00:05]} 48. Bc5 {[%clk 0:00:50]}  Rb7 {[%clk 0:00:04]} 49. Ke3 {[%clk 0:00:47]}  Be6 {[%clk 0:00:04]} 50. Kf4 {[%clk 0:00:46]}  Kf6 {[%clk 0:00:02]} 51. Bd4+ {[%clk 0:00:46]}  Kf7 {[%clk 0:00:00]} 52. Rc2 {[%clk 0:00:46]} 1-0


[Site "https://www.chess.com"]

[Event "Titled Tuesday Blitz June 27 Early 2023"]
[White "Hambleton, Aman"]
[Black "Koepke, Christian"]
[WhiteFideId "2606577"]
[BlackFideId "4655737"]
[WhiteElo "2704"]
[BlackElo "2406"]
[Result "1-0"]
[Round "1"]
[TimeControl "180+2"]
[Date "2023.06.27"]
[WhiteClock "0:00:03"]
[BlackClock "0:00:00"]
[Board "123"]

1. d4 {[%clk 0:02:56]}  d5 {[%clk 0:02:59]} 2. Bf4 {[%clk 0:02:52]}  c5 {[%clk 0:02:58]} 3. e3 {[%clk 0:02:44]}  cxd4 {[%clk 0:02:58]} 4. exd4 {[%clk 0:02:43]}  Nc6 {[%clk 0:02:58]} 5. c3 {[%clk 0:02:43]}  Bf5 {[%clk 0:02:57]} 6. Qb3 {[%clk 0:02:42]}  Qd7 {[%clk 0:02:56]} 7. Nd2 {[%clk 0:02:40]}  e6 {[%clk 0:02:54]} 8. Ngf3 {[%clk 0:02:40]}  f6 {[%clk 0:02:54]} 9. Be2 {[%clk 0:02:40]}  g5 {[%clk 0:02:53]} 10. Bg3 {[%clk 0:02:38]}  h5 {[%clk 0:02:53]} 11. h3 {[%clk 0:02:36]}  Nge7 {[%clk 0:02:48]} 12. Nf1 {[%clk 0:02:32]}  Bh6 {[%clk 0:02:40]} 13. Ne3 {[%clk 0:02:20]}  Be4 {[%clk 0:02:34]} 14. Nd2 {[%clk 0:01:58]}  Bg6 {[%clk 0:02:34]} 15. Qd1 {[%clk 0:01:58]}  Bg7 {[%clk 0:02:24]} 16. Nb3 {[%clk 0:01:29]}  b6 {[%clk 0:02:20]} 17. Bd3 {[%clk 0:01:28]}  f5 {[%clk 0:02:16]} 18. f4 {[%clk 0:00:37]}  h4 {[%clk 0:02:14]} 19. Bh2 {[%clk 0:00:37]}  Bh5 {[%clk 0:01:35]} 20. Be2 {[%clk 0:00:25]}  Bxe2 {[%clk 0:01:35]} 21. Qxe2 {[%clk 0:00:26]}  gxf4 {[%clk 0:01:15]} 22. Bxf4 {[%clk 0:00:20]}  Ng6 {[%clk 0:01:13]} 23. Bh2 {[%clk 0:00:04]}  O-O {[%clk 0:00:48]} 24. O-O {[%clk 0:00:02]}  Bh6 {[%clk 0:00:24]} 25. Rae1 {[%clk 0:00:01]}  Rae8 {[%clk 0:00:24]} 26. Qh5 {[%clk 0:00:01]}  Kh7 {[%clk 0:00:23]} 27. Nc1 {[%clk 0:00:01]}  Qg7 {[%clk 0:00:14]} 28. Nd3 {[%clk 0:00:02]}  Rg8 {[%clk 0:00:13]} 29. Rf2 {[%clk 0:00:01]}  Nd8 {[%clk 0:00:05]} 30. Ne5 {[%clk 0:00:01]}  Nxe5 {[%clk 0:00:05]} 31. Bxe5 {[%clk 0:00:02]}  Qg6 {[%clk 0:00:04]} 32. Qxh4 {[%clk 0:00:02]}  Nf7 {[%clk 0:00:04]} 33. Bf4 {[%clk 0:00:03]}  Ng5 {[%clk 0:00:04]} 34. Bxg5 {[%clk 0:00:03]}  Qxg5 {[%clk 0:00:05]} 35. Qxg5 {[%clk 0:00:03]}  Bxg5 {[%clk 0:00:05]} 36. Nc2 {[%clk 0:00:03]}  Bh4 {[%clk 0:00:04]} 37. Nb4 {[%clk 0:00:03]}  Bxf2+ {[%clk 0:00:04]} 38. Kxf2 {[%clk 0:00:04]}  Rg6 {[%clk 0:00:04]} 39. Nd3 {[%clk 0:00:03]}  Kg7 {[%clk 0:00:04]} 40. Nf4 {[%clk 0:00:03]}  Rh6 {[%clk 0:00:04]} 41. Nxd5 {[%clk 0:00:03]}  Kf7 {[%clk 0:00:04]} 42. Nf4 {[%clk 0:00:03]}  Rg8 {[%clk 0:00:02]} 43. g3 {[%clk 0:00:02]}  Rh7 {[%clk 0:00:02]} 44. h4 {[%clk 0:00:02]}  Rh6 {[%clk 0:00:01]} 45. Re3 {[%clk 0:00:03]}  Re8 {[%clk 0:00:01]} 46. Nd3 {[%clk 0:00:03]}  Kf6 {[%clk 0:00:02]} 47. Kf3 {[%clk 0:00:03]}  Rh7 {[%clk 0:00:02]} 48. Nf4 {[%clk 0:00:03]}  Rg7 {[%clk 0:00:02]} 49. Nh5+ {[%clk 0:00:02]}  Kg6 {[%clk 0:00:03]} 50. Nxg7 {[%clk 0:00:03]}  Kxg7 {[%clk 0:00:04]} 51. g4 {[%clk 0:00:03]}  Kf6 {[%clk 0:00:03]} 52. gxf5 {[%clk 0:00:03]}  Kxf5 {[%clk 0:00:04]} 53. Re5+ {[%clk 0:00:03]}  Kf6 {[%clk 0:00:04]} 54. Ke4 {[%clk 0:00:04]}  Rg8 {[%clk 0:00:05]} 55. Rg5 {[%clk 0:00:04]}  Rh8 {[%clk 0:00:04]} 56. Rg4 {[%clk 0:00:04]}  Rh5 {[%clk 0:00:04]} 57. c4 {[%clk 0:00:04]}  Ra5 {[%clk 0:00:03]} 58. a3 {[%clk 0:00:03]}  b5 {[%clk 0:00:04]} 59. c5 {[%clk 0:00:02]}  Ra4 {[%clk 0:00:04]} 60. h5 {[%clk 0:00:01]}  e5 {[%clk 0:00:04]} 61. Kd5 {[%clk 0:00:02]}  exd4 {[%clk 0:00:00]} 62. Rxd4 {[%clk 0:00:03]} 1-0


[Site "https://www.chess.com"]

[Event "Titled Tuesday Blitz June 27 Early 2023"]
[White "Petrova, Irina"]
[Black "Di Benedetto, Edoardo"]
[WhiteFideId "14124122"]
[BlackFideId "875740"]
[WhiteElo "2392"]
[BlackElo "2703"]
[Result "1-0"]
[Round "1"]
[TimeControl "180+2"]
[Date "2023.06.27"]
[WhiteClock "0:01:46"]
[BlackClock "0:01:44"]
[Board "124"]

1. e4 {[%clk 0:02:58]}  e6 {[%clk 0:03:00]} 2. d4 {[%clk 0:02:56]}  d5 {[%clk 0:03:00]} 3. Nc3 {[%clk 0:02:56]}  Nf6 {[%clk 0:03:00]} 4. Bg5 {[%clk 0:02:56]}  Bb4 {[%clk 0:03:00]} 5. e5 {[%clk 0:02:55]}  h6 {[%clk 0:03:00]} 6. Bd2 {[%clk 0:02:54]}  Bxc3 {[%clk 0:03:00]} 7. bxc3 {[%clk 0:02:55]}  Ne4 {[%clk 0:03:01]} 8. Qg4 {[%clk 0:02:54]}  Kf8 {[%clk 0:03:00]} 9. Bd3 {[%clk 0:02:54]}  Nxd2 {[%clk 0:03:00]} 10. Kxd2 {[%clk 0:02:55]}  c5 {[%clk 0:03:01]} 11. h4 {[%clk 0:02:54]}  c4 {[%clk 0:03:00]} 12. Be2 {[%clk 0:02:54]}  Nc6 {[%clk 0:03:01]} 13. Rh3 {[%clk 0:02:53]}  b5 {[%clk 0:03:00]} 14. Rg3 {[%clk 0:02:51]}  Rg8 {[%clk 0:03:00]} 15. Nh3 {[%clk 0:02:47]}  a5 {[%clk 0:02:54]} 16. Nf4 {[%clk 0:02:42]}  Ne7 {[%clk 0:02:53]} 17. a3 {[%clk 0:02:38]}  Nf5 {[%clk 0:02:45]} 18. Rf3 {[%clk 0:02:32]}  Qe7 {[%clk 0:02:41]} 19. h5 {[%clk 0:02:11]}  Rb8 {[%clk 0:02:21]} 20. Qh3 {[%clk 0:02:02]}  b4 {[%clk 0:02:14]} 21. axb4 {[%clk 0:02:01]}  axb4 {[%clk 0:02:14]} 22. g4 {[%clk 0:01:54]}  bxc3+ {[%clk 0:02:11]} 23. Ke1 {[%clk 0:01:54]}  Nh4 {[%clk 0:01:54]} 24. Qxh4 {[%clk 0:01:51]}  Qb4 {[%clk 0:01:44]} 25. Qd8# {[%clk 0:01:46]} 1-0


[Site "https://www.chess.com"]

[Event "Titled Tuesday Blitz June 27 Early 2023"]
[White "De Silva, L M S T"]
[Black "Goldin, Roman"]
[WhiteFideId "9953698"]
[BlackFideId "2803860"]
[WhiteElo "2702"]
[BlackElo "2389"]
[Result "1-0"]
[Round "1"]
[TimeControl "180+2"]
[Date "2023.06.27"]
[WhiteClock "0:01:14"]
[BlackClock "0:00:00"]
[Board "125"]

1. e4 {[%clk 0:03:00]}  Nc6 {[%clk 0:02:57]} 2. d4 {[%clk 0:02:57]}  e5 {[%clk 0:02:57]} 3. Nf3 {[%clk 0:02:50]}  exd4 {[%clk 0:02:56]} 4. Nxd4 {[%clk 0:02:51]}  g6 {[%clk 0:02:56]} 5. Be3 {[%clk 0:02:49]}  Bg7 {[%clk 0:02:56]} 6. Nc3 {[%clk 0:02:49]}  Nf6 {[%clk 0:02:57]} 7. Be2 {[%clk 0:02:48]}  O-O {[%clk 0:02:56]} 8. O-O {[%clk 0:02:48]}  Re8 {[%clk 0:02:57]} 9. Nxc6 {[%clk 0:02:46]}  bxc6 {[%clk 0:02:56]} 10. f3 {[%clk 0:02:43]}  d5 {[%clk 0:02:56]} 11. Bg5 {[%clk 0:02:42]}  h6 {[%clk 0:02:40]} 12. Bh4 {[%clk 0:02:37]}  g5 {[%clk 0:02:40]} 13. Bg3 {[%clk 0:02:38]}  Nh5 {[%clk 0:02:26]} 14. Bf2 {[%clk 0:02:35]}  Nf4 {[%clk 0:02:26]} 15. Bd4 {[%clk 0:02:27]}  Bxd4+ {[%clk 0:02:12]} 16. Qxd4 {[%clk 0:02:27]}  dxe4 {[%clk 0:01:54]} 17. Qxd8 {[%clk 0:02:21]}  Rxd8 {[%clk 0:01:53]} 18. fxe4 {[%clk 0:02:14]}  Nxe2+ {[%clk 0:01:45]} 19. Nxe2 {[%clk 0:02:13]}  Rd2 {[%clk 0:01:39]} 20. Ng3 {[%clk 0:02:10]}  Rxc2 {[%clk 0:01:36]} 21. Rac1 {[%clk 0:02:09]}  Rxb2 {[%clk 0:01:29]} 22. Rxc6 {[%clk 0:02:08]}  Be6 {[%clk 0:01:20]} 23. Rxc7 {[%clk 0:02:06]}  Rxa2 {[%clk 0:01:19]} 24. Nh5 {[%clk 0:02:05]}  a5 {[%clk 0:01:17]} 25. Nf6+ {[%clk 0:02:03]}  Kg7 {[%clk 0:01:16]} 26. h4 {[%clk 0:01:51]}  gxh4 {[%clk 0:01:01]} 27. Nh5+ {[%clk 0:01:51]}  Kg8 {[%clk 0:00:53]} 28. Nf6+ {[%clk 0:01:49]}  Kh8 {[%clk 0:00:45]} 29. Nh5 {[%clk 0:01:49]}  a4 {[%clk 0:00:26]} 30. Rf6 {[%clk 0:01:47]}  a3 {[%clk 0:00:16]} 31. Rxh6+ {[%clk 0:01:40]}  Kg8 {[%clk 0:00:17]} 32. Rc5 {[%clk 0:01:22]}  Ra6 {[%clk 0:00:04]} 33. Rb5 {[%clk 0:01:14]}  Ra1+ {[%clk 0:00:05]} 34. Kh2 {[%clk 0:01:14]}  a2 {[%clk 0:00:00]} 35. Rb8+ {[%clk 0:01:14]} 1-0


[Site "https://www.chess.com"]